[Event "Titled Tuesday Blitz June 1 2021"]
[White "Shapkin, Anatoliy"]
[Black "Pein, Jonathan"]
[WhiteFideId "34108332"]
[BlackFideId "417092"]
[WhiteElo "2223"]
[BlackElo "2167"]
[Result "1-0"]
[Round "02"]
[TimeControl "180+1"]
[Date "2021.06.01"]
[WhiteClock "0:00:39"]
[BlackClock "0:01:13"]

1. d4 {[%clk 0:03:00]}  d5 {[%clk 0:02:59]} 2. c4 {[%clk 0:03:00]}  Nc6 {[%clk 0:02:59]} 3. Nc3 {[%clk 0:03:00]}  Nf6 {[%clk 0:02:59]} 4. cxd5 {[%clk 0:03:00]}  Nxd5 {[%clk 0:02:59]} 5. e4 {[%clk 0:03:00]}  Nxc3 {[%clk 0:02:59]} 6. bxc3 {[%clk 0:03:01]}  e5 {[%clk 0:02:58]} 7. Nf3 {[%clk 0:02:58]}  exd4 {[%clk 0:02:56]} 8. cxd4 {[%clk 0:02:58]}  Bb4+ {[%clk 0:02:56]} 9. Bd2 {[%clk 0:02:59]}  Bxd2+ {[%clk 0:02:47]} 10. Qxd2 {[%clk 0:02:59]}  O-O {[%clk 0:02:47]} 11. Bb5 {[%clk 0:02:58]}  Bg4 {[%clk 0:02:42]} 12. Bxc6 {[%clk 0:02:40]}  Bxf3 {[%clk 0:02:35]} 13. gxf3 {[%clk 0:02:06]}  bxc6 {[%clk 0:02:34]} 14. Rc1 {[%clk 0:02:06]}  Qf6 {[%clk 0:02:32]} 15. Qe3 {[%clk 0:01:54]}  Rab8 {[%clk 0:02:26]} 16. O-O {[%clk 0:01:53]}  Rb5 {[%clk 0:02:17]} 17. e5 {[%clk 0:01:44]}  Qg6+ {[%clk 0:02:06]} 18. Kh1 {[%clk 0:01:44]}  Rb2 {[%clk 0:01:58]} 19. Rg1 {[%clk 0:01:37]}  Qh5 {[%clk 0:01:56]} 20. Rxc6 {[%clk 0:01:19]}  Rxa2 {[%clk 0:01:44]} 21. Rh6 {[%clk 0:01:01]}  Qf5 {[%clk 0:01:34]} 22. Rf6 {[%clk 0:00:42]}  Qh5 {[%clk 0:01:34]} 23. e6 {[%clk 0:00:39]}  fxe6 {[%clk 0:01:13]} 24. Qxe6+ {[%clk 0:00:39]} 1-0


[Site "https://www.chess.com"]

[Event "Titled Tuesday Blitz June 1 2021"]
[White "Siva Mahadevan"]
[Black "Narva, Mai"]
[WhiteFideId "25043153"]
[BlackFideId "4500512"]
[WhiteElo "2203"]
[BlackElo "2236"]
[Result "0-1"]
[Round "02"]
[TimeControl "180+1"]
[Date "2021.06.01"]
[WhiteClock "0:00:11"]
[BlackClock "0:00:07"]

1. e4 {[%clk 0:03:00]}  c5 {[%clk 0:02:59]} 2. Nf3 {[%clk 0:03:00]}  d6 {[%clk 0:02:59]} 3. d4 {[%clk 0:03:00]}  cxd4 {[%clk 0:03:00]} 4. Nxd4 {[%clk 0:03:01]}  Nf6 {[%clk 0:03:00]} 5. Nc3 {[%clk 0:03:02]}  g6 {[%clk 0:03:01]} 6. Be3 {[%clk 0:03:01]}  Bg7 {[%clk 0:03:01]} 7. f3 {[%clk 0:03:01]}  O-O {[%clk 0:03:01]} 8. Qd2 {[%clk 0:03:02]}  Nc6 {[%clk 0:03:02]} 9. Bc4 {[%clk 0:03:03]}  Nxd4 {[%clk 0:03:01]} 10. Bxd4 {[%clk 0:03:03]}  Qa5 {[%clk 0:03:02]} 11. Bb3 {[%clk 0:03:03]}  Be6 {[%clk 0:03:02]} 12. O-O-O {[%clk 0:02:53]}  b5 {[%clk 0:03:02]} 13. Kb1 {[%clk 0:02:53]}  b4 {[%clk 0:03:01]} 14. Nd5 {[%clk 0:02:41]}  Bxd5 {[%clk 0:03:00]} 15. exd5 {[%clk 0:02:40]}  Qb5 {[%clk 0:03:00]} 16. Rhe1 {[%clk 0:02:37]}  a5 {[%clk 0:02:59]} 17. Qe2 {[%clk 0:02:30]}  Qxe2 {[%clk 0:02:58]} 18. Rxe2 {[%clk 0:02:31]}  a4 {[%clk 0:02:57]} 19. Bc4 {[%clk 0:02:31]}  Rfc8 {[%clk 0:02:57]} 20. b3 {[%clk 0:02:31]}  Rc7 {[%clk 0:02:52]} 21. Rde1 {[%clk 0:02:20]}  Kf8 {[%clk 0:02:28]} 22. g4 {[%clk 0:02:03]}  Bh6 {[%clk 0:02:24]} 23. h4 {[%clk 0:01:55]}  Bf4 {[%clk 0:02:20]} 24. Bb6 {[%clk 0:01:39]}  Rb7 {[%clk 0:02:16]} 25. Bf2 {[%clk 0:01:39]}  Ra5 {[%clk 0:02:03]} 26. Rd1 {[%clk 0:01:36]}  h6 {[%clk 0:01:36]} 27. Be1 {[%clk 0:01:30]}  Nd7 {[%clk 0:01:26]} 28. Re4 {[%clk 0:01:25]}  g5 {[%clk 0:01:24]} 29. hxg5 {[%clk 0:01:22]}  hxg5 {[%clk 0:01:22]} 30. a3 {[%clk 0:01:15]}  axb3 {[%clk 0:01:15]} 31. axb4 {[%clk 0:01:14]}  bxc2+ {[%clk 0:01:07]} 32. Kxc2 {[%clk 0:01:15]}  Ra3 {[%clk 0:01:03]} 33. Bb3 {[%clk 0:01:09]}  Ne5 {[%clk 0:00:50]} 34. Kb2 {[%clk 0:01:06]}  Ra8 {[%clk 0:00:43]} 35. Bc3 {[%clk 0:01:00]}  Ke8 {[%clk 0:00:17]} 36. Rh1 {[%clk 0:00:46]}  Kd7 {[%clk 0:00:17]} 37. Rh7 {[%clk 0:00:44]}  Rbb8 {[%clk 0:00:13]} 38. Kc2 {[%clk 0:00:38]}  Rh8 {[%clk 0:00:08]} 39. Rxh8 {[%clk 0:00:30]}  Rxh8 {[%clk 0:00:09]} 40. Ba4+ {[%clk 0:00:27]}  Kc7 {[%clk 0:00:09]} 41. b5 {[%clk 0:00:28]}  Rh2+ {[%clk 0:00:08]} 42. Kb3 {[%clk 0:00:28]}  Nd3 {[%clk 0:00:08]} 43. Ba5+ {[%clk 0:00:21]}  Kc8 {[%clk 0:00:06]} 44. Rxe7 {[%clk 0:00:19]}  Nc5+ {[%clk 0:00:06]} 45. Kb4 {[%clk 0:00:18]}  Bd2+ {[%clk 0:00:06]} 46. Kc4 {[%clk 0:00:18]}  Bxa5 {[%clk 0:00:05]} 47. Bd1 {[%clk 0:00:15]}  Rb2 {[%clk 0:00:04]} 48. Re2 {[%clk 0:00:08]}  Rb4+ {[%clk 0:00:04]} 49. Kc3 {[%clk 0:00:09]}  Rxg4+ {[%clk 0:00:04]} 50. Kc2 {[%clk 0:00:09]}  Rc4+ {[%clk 0:00:05]} 51. Kb1 {[%clk 0:00:09]}  Rd4 {[%clk 0:00:05]} 52. Bc2 {[%clk 0:00:09]}  Rxd5 {[%clk 0:00:05]} 53. Re8+ {[%clk 0:00:09]}  Kd7 {[%clk 0:00:05]} 54. Ra8 {[%clk 0:00:09]}  Bb6 {[%clk 0:00:05]} 55. Rb8 {[%clk 0:00:10]}  Bc7 {[%clk 0:00:04]} 56. Rf8 {[%clk 0:00:10]}  f5 {[%clk 0:00:03]} 57. Bxf5+ {[%clk 0:00:10]}  Ke7 {[%clk 0:00:04]} 58. Rc8 {[%clk 0:00:10]}  Rxf5 {[%clk 0:00:04]} 59. Rxc7+ {[%clk 0:00:11]}  Ke6 {[%clk 0:00:04]} 60. b6 {[%clk 0:00:11]}  Rxf3 {[%clk 0:00:05]} 61. Kb2 {[%clk 0:00:10]}  Rb3+ {[%clk 0:00:05]} 62. Kc2 {[%clk 0:00:10]}  Rxb6 {[%clk 0:00:06]} 63. Rg7 {[%clk 0:00:10]}  Kf6 {[%clk 0:00:05]} 64. Rg8 {[%clk 0:00:11]}  Ne6 {[%clk 0:00:06]} 65. Kd3 {[%clk 0:00:11]}  Ke5 {[%clk 0:00:06]} 66. Rh8 {[%clk 0:00:10]}  Rb3+ {[%clk 0:00:07]} 67. Kc4 {[%clk 0:00:11]}  Rf3 {[%clk 0:00:07]} 68. Rh1 {[%clk 0:00:10]}  g4 {[%clk 0:00:07]} 69. Re1+ {[%clk 0:00:10]}  Kf5 {[%clk 0:00:07]} 70. Kd5 {[%clk 0:00:10]}  Nf4+ {[%clk 0:00:07]} 71. Kxd6 {[%clk 0:00:11]}  g3 {[%clk 0:00:07]} 0-1


[Site "https://www.chess.com"]

[Event "Titled Tuesday Blitz June 1 2021"]
[White "Sjugirov, Sanan"]
[Black "Solon, Nathan"]
[WhiteFideId "4189302"]
[BlackFideId "2017229"]
[WhiteElo "2472"]
[BlackElo "2614"]
[Result "1-0"]
[Round "02"]
[TimeControl "180+1"]
[Date "2021.06.01"]
[WhiteClock "0:01:23"]
[BlackClock "0:00:36"]

1. e4 {[%clk 0:03:00]}  c5 {[%clk 0:02:58]} 2. Nf3 {[%clk 0:03:00]}  d6 {[%clk 0:02:59]} 3. Bb5+ {[%clk 0:03:00]}  Nd7 {[%clk 0:02:59]} 4. a4 {[%clk 0:02:58]}  Nf6 {[%clk 0:02:58]} 5. Nc3 {[%clk 0:02:57]}  g6 {[%clk 0:02:58]} 6. a5 {[%clk 0:02:57]}  Bg7 {[%clk 0:02:52]} 7. a6 {[%clk 0:02:57]}  O-O {[%clk 0:02:49]} 8. O-O {[%clk 0:02:56]}  Nb6 {[%clk 0:02:24]} 9. d3 {[%clk 0:02:50]}  d5 {[%clk 0:02:18]} 10. e5 {[%clk 0:02:36]}  Nfd7 {[%clk 0:02:18]} 11. Bf4 {[%clk 0:02:30]}  e6 {[%clk 0:02:14]} 12. Qd2 {[%clk 0:02:26]}  Qc7 {[%clk 0:02:01]} 13. Rfe1 {[%clk 0:02:23]}  bxa6 {[%clk 0:01:42]} 14. Bxa6 {[%clk 0:02:24]}  Bxa6 {[%clk 0:01:43]} 15. Rxa6 {[%clk 0:02:25]}  Qb7 {[%clk 0:01:43]} 16. Ra2 {[%clk 0:02:22]}  d4 {[%clk 0:01:38]} 17. Ne4 {[%clk 0:02:20]}  Nd5 {[%clk 0:01:39]} 18. Bh6 {[%clk 0:02:14]}  Nb4 {[%clk 0:01:30]} 19. Raa1 {[%clk 0:02:07]}  Qd5 {[%clk 0:01:28]} 20. Bxg7 {[%clk 0:01:55]}  Kxg7 {[%clk 0:01:29]} 21. Ng3 {[%clk 0:01:55]}  Nc6 {[%clk 0:01:22]} 22. Qf4 {[%clk 0:01:50]}  h6 {[%clk 0:01:17]} 23. b3 {[%clk 0:01:40]}  a5 {[%clk 0:01:13]} 24. h4 {[%clk 0:01:39]}  Ra7 {[%clk 0:01:01]} 25. Re4 {[%clk 0:01:33]}  Nb4 {[%clk 0:00:39]} 26. Re2 {[%clk 0:01:32]}  Rfa8 {[%clk 0:00:37]} 27. Nh2 {[%clk 0:01:29]}  h5 {[%clk 0:00:36]} 28. Nf3 {[%clk 0:01:25]}  a4 {[%clk 0:00:35]} 29. bxa4 {[%clk 0:01:24]}  Rxa4 {[%clk 0:00:36]} 30. Rxa4 {[%clk 0:01:25]}  Rxa4 {[%clk 0:00:36]} 31. Ng5 {[%clk 0:01:23]} 1-0


[Site "https://www.chess.com"]

[Event "Titled Tuesday Blitz June 1 2021"]
[White "Soto Vega, Jorge"]
[Black "Indjic, Aleksandar"]
[WhiteFideId "3800580"]
[BlackFideId "911925"]
[WhiteElo "2259"]
[BlackElo "2643"]
[Result "0-1"]
[Round "02"]
[TimeControl "180+1"]
[Date "2021.06.01"]
[WhiteClock "0:01:10"]
[BlackClock "0:01:17"]

1. e4 {[%clk 0:02:59]}  d6 {[%clk 0:03:00]} 2. d4 {[%clk 0:02:58]}  Nf6 {[%clk 0:03:00]} 3. f3 {[%clk 0:02:58]}  e5 {[%clk 0:03:00]} 4. Ne2 {[%clk 0:02:57]}  c6 {[%clk 0:02:58]} 5. Nbc3 {[%clk 0:02:55]}  Nbd7 {[%clk 0:02:55]} 6. Be3 {[%clk 0:02:55]}  b5 {[%clk 0:02:54]} 7. Qd2 {[%clk 0:02:54]}  b4 {[%clk 0:02:54]} 8. Nd1 {[%clk 0:02:54]}  a5 {[%clk 0:02:54]} 9. Nf2 {[%clk 0:02:53]}  d5 {[%clk 0:02:50]} 10. exd5 {[%clk 0:02:43]}  Nxd5 {[%clk 0:02:50]} 11. Bg5 {[%clk 0:02:38]}  Be7 {[%clk 0:02:49]} 12. Bxe7 {[%clk 0:02:32]}  Qxe7 {[%clk 0:02:50]} 13. O-O-O {[%clk 0:02:32]}  O-O {[%clk 0:02:50]} 14. h4 {[%clk 0:02:29]}  a4 {[%clk 0:02:49]} 15. Kb1 {[%clk 0:02:29]}  Ba6 {[%clk 0:02:44]} 16. Ne4 {[%clk 0:02:25]}  a3 {[%clk 0:02:43]} 17. b3 {[%clk 0:02:23]}  f5 {[%clk 0:02:39]} 18. N4g3 {[%clk 0:02:21]}  e4 {[%clk 0:02:33]} 19. Re1 {[%clk 0:02:07]}  e3 {[%clk 0:02:17]} 20. Qc1 {[%clk 0:02:06]}  c5 {[%clk 0:02:11]} 21. c4 {[%clk 0:02:06]}  cxd4 {[%clk 0:01:31]} 22. Nxd4 {[%clk 0:02:04]}  Nc3+ {[%clk 0:01:28]} 23. Ka1 {[%clk 0:01:59]}  f4 {[%clk 0:01:28]} 24. Nge2 {[%clk 0:01:51]}  Nxe2 {[%clk 0:01:28]} 25. Nxe2 {[%clk 0:01:47]}  Nc5 {[%clk 0:01:26]} 26. Rd1 {[%clk 0:01:45]}  Qf6+ {[%clk 0:01:22]} 27. Kb1 {[%clk 0:01:44]}  Bc8 {[%clk 0:01:21]} 28. Nd4 {[%clk 0:01:38]}  Rd8 {[%clk 0:01:19]} 29. Nc2 {[%clk 0:01:10]}  Rxd1 {[%clk 0:01:17]} 30. Qxd1 {[%clk 0:01:10]}  Qb2# {[%clk 0:01:17]} 0-1


[Site "https://www.chess.com"]

[Event "Titled Tuesday Blitz June 1 2021"]
[White "Spata, German"]
[Black "Jobava, Baadur"]
[WhiteFideId "113026"]
[BlackFideId "13601520"]
[WhiteElo "2238"]
[BlackElo "2748"]
[Result "0-1"]
[Round "02"]
[TimeControl "180+1"]
[Date "2021.06.01"]
[WhiteClock "0:00:26"]
[BlackClock "0:01:44"]

1. Nf3 {[%clk 0:03:00]}  Nf6 {[%clk 0:02:57]} 2. b3 {[%clk 0:03:00]}  c6 {[%clk 0:02:56]} 3. Bb2 {[%clk 0:03:00]}  d5 {[%clk 0:02:57]} 4. e3 {[%clk 0:03:00]}  Bg4 {[%clk 0:02:57]} 5. Be2 {[%clk 0:02:59]}  e6 {[%clk 0:02:57]} 6. O-O {[%clk 0:02:56]}  Nbd7 {[%clk 0:02:56]} 7. c4 {[%clk 0:02:54]}  Bd6 {[%clk 0:02:55]} 8. d4 {[%clk 0:02:53]}  Ne4 {[%clk 0:02:51]} 9. Nbd2 {[%clk 0:02:51]}  O-O {[%clk 0:02:45]} 10. Nxe4 {[%clk 0:02:47]}  dxe4 {[%clk 0:02:46]} 11. Ne5 {[%clk 0:02:47]}  Bxe2 {[%clk 0:02:46]} 12. Qxe2 {[%clk 0:02:46]}  Bxe5 {[%clk 0:02:29]} 13. dxe5 {[%clk 0:02:46]}  Qg5 {[%clk 0:02:30]} 14. Qc2 {[%clk 0:02:30]}  Qf5 {[%clk 0:02:25]} 15. Rad1 {[%clk 0:02:24]}  Rfd8 {[%clk 0:02:21]} 16. Qd2 {[%clk 0:02:11]}  h5 {[%clk 0:02:20]} 17. Qd6 {[%clk 0:02:09]}  Qg5 {[%clk 0:02:01]} 18. h3 {[%clk 0:01:19]}  Nf8 {[%clk 0:01:54]} 19. Qc7 {[%clk 0:01:13]}  Ng6 {[%clk 0:01:54]} 20. Kh2 {[%clk 0:00:26]}  Nh4 {[%clk 0:01:51]} 21. Rxd8+ {[%clk 0:00:25]}  Rxd8 {[%clk 0:01:50]} 22. Rg1 {[%clk 0:00:26]}  Rd1 {[%clk 0:01:44]} 0-1


[Site "https://www.chess.com"]

[Event "Titled Tuesday Blitz June 1 2021"]
[White "Spyropoulos, Nikolaos"]
[Black "Hansen, Eric"]
[WhiteFideId "4298977"]
[BlackFideId "2606771"]
[WhiteElo "2159"]
[BlackElo "2568"]
[Result "0-1"]
[Round "02"]
[TimeControl "180+1"]
[Date "2021.06.01"]
[WhiteClock "0:00:06"]
[BlackClock "0:00:26"]

1. e4 {[%clk 0:03:00]}  e5 {[%clk 0:02:58]} 2. Nf3 {[%clk 0:02:57]}  Nc6 {[%clk 0:02:56]} 3. Bc4 {[%clk 0:02:56]}  Bc5 {[%clk 0:02:48]} 4. O-O {[%clk 0:02:56]}  Nf6 {[%clk 0:02:47]} 5. d3 {[%clk 0:02:56]}  d6 {[%clk 0:02:46]} 6. c3 {[%clk 0:02:54]}  a6 {[%clk 0:02:44]} 7. a4 {[%clk 0:02:54]}  Ba7 {[%clk 0:02:40]} 8. Nbd2 {[%clk 0:02:49]}  h6 {[%clk 0:02:39]} 9. Re1 {[%clk 0:02:49]}  g5 {[%clk 0:02:38]} 10. Nf1 {[%clk 0:02:42]}  Nh5 {[%clk 0:02:35]} 11. Be3 {[%clk 0:02:36]}  Nf4 {[%clk 0:02:31]} 12. Bxa7 {[%clk 0:02:26]}  Rxa7 {[%clk 0:02:30]} 13. g3 {[%clk 0:02:26]}  Nh3+ {[%clk 0:02:21]} 14. Kg2 {[%clk 0:02:25]}  Qf6 {[%clk 0:02:22]} 15. Ne3 {[%clk 0:02:20]}  g4 {[%clk 0:02:21]} 16. Nh4 {[%clk 0:02:15]}  Qxf2+ {[%clk 0:02:09]} 17. Kh1 {[%clk 0:02:15]}  Qxe3 {[%clk 0:01:46]} 18. Rxe3 {[%clk 0:02:14]}  Nf2+ {[%clk 0:01:46]} 19. Kg2 {[%clk 0:02:14]}  Nxd1 {[%clk 0:01:47]} 20. Rxd1 {[%clk 0:02:15]}  Be6 {[%clk 0:01:46]} 21. Bxe6 {[%clk 0:02:06]}  fxe6 {[%clk 0:01:39]} 22. h3 {[%clk 0:02:03]}  gxh3+ {[%clk 0:01:29]} 23. Kxh3 {[%clk 0:02:04]}  Rf8 {[%clk 0:01:30]} 24. Re2 {[%clk 0:01:56]}  Rf6 {[%clk 0:01:28]} 25. Ng2 {[%clk 0:01:49]}  Ke7 {[%clk 0:01:25]} 26. Ne3 {[%clk 0:01:49]}  h5 {[%clk 0:01:25]} 27. Rh1 {[%clk 0:01:49]}  Rg6 {[%clk 0:01:17]} 28. Kg2 {[%clk 0:01:48]}  Rg5 {[%clk 0:01:17]} 29. Kf3 {[%clk 0:01:44]}  Ra8 {[%clk 0:01:16]} 30. Reh2 {[%clk 0:01:44]}  Rh8 {[%clk 0:01:12]} 31. Rh3 {[%clk 0:01:19]}  Nb8 {[%clk 0:01:11]} 32. Ke2 {[%clk 0:01:17]}  Nd7 {[%clk 0:01:08]} 33. g4 {[%clk 0:01:12]}  Nf6 {[%clk 0:01:08]} 34. gxh5 {[%clk 0:01:08]}  Rhxh5 {[%clk 0:01:08]} 35. Rxh5 {[%clk 0:01:09]}  Nxh5 {[%clk 0:01:07]} 36. Kd2 {[%clk 0:01:08]}  c6 {[%clk 0:01:00]} 37. a5 {[%clk 0:01:05]}  d5 {[%clk 0:00:59]} 38. Kc2 {[%clk 0:00:57]}  Kd6 {[%clk 0:00:57]} 39. Kb3 {[%clk 0:00:42]}  Nf4 {[%clk 0:00:55]} 40. Rh7 {[%clk 0:00:37]}  Nxd3 {[%clk 0:00:55]} 41. Kc2 {[%clk 0:00:32]}  Nc5 {[%clk 0:00:52]} 42. exd5 {[%clk 0:00:31]}  exd5 {[%clk 0:00:44]} 43. b4 {[%clk 0:00:30]}  Ne4 {[%clk 0:00:44]} 44. Rxb7 {[%clk 0:00:26]}  Rh5 {[%clk 0:00:29]} 45. Rb6 {[%clk 0:00:22]}  Rh2+ {[%clk 0:00:28]} 46. Kd3 {[%clk 0:00:06]}  Rd2# {[%clk 0:00:26]} 0-1


[Site "https://www.chess.com"]

[Event "Titled Tuesday Blitz June 1 2021"]
[White "Svane, Frederik"]
[Black "Kislov, Oleg"]
[WhiteFideId "12923044"]
[BlackFideId "13503774"]
[WhiteElo "2459"]
[BlackElo "2252"]
[Result "1-0"]
[Round "02"]
[TimeControl "180+1"]
[Date "2021.06.01"]
[WhiteClock "0:01:30"]
[BlackClock "0:00:56"]

1. e4 {[%clk 0:03:00]}  c5 {[%clk 0:02:57]} 2. Nf3 {[%clk 0:03:00]}  Nc6 {[%clk 0:02:57]} 3. Bb5 {[%clk 0:03:01]}  g6 {[%clk 0:02:56]} 4. O-O {[%clk 0:03:00]}  Bg7 {[%clk 0:02:56]} 5. Re1 {[%clk 0:03:01]}  d6 {[%clk 0:02:52]} 6. c3 {[%clk 0:02:59]}  Bd7 {[%clk 0:02:51]} 7. d4 {[%clk 0:02:58]}  cxd4 {[%clk 0:02:48]} 8. cxd4 {[%clk 0:02:59]}  Nf6 {[%clk 0:02:48]} 9. Nc3 {[%clk 0:02:56]}  O-O {[%clk 0:02:46]} 10. h3 {[%clk 0:02:54]}  a6 {[%clk 0:02:44]} 11. Bf1 {[%clk 0:02:51]}  Rc8 {[%clk 0:02:31]} 12. Bg5 {[%clk 0:02:49]}  b5 {[%clk 0:02:09]} 13. Qd2 {[%clk 0:02:49]}  b4 {[%clk 0:02:06]} 14. Nd5 {[%clk 0:02:49]}  e6 {[%clk 0:01:58]} 15. Nxf6+ {[%clk 0:02:40]}  Bxf6 {[%clk 0:01:58]} 16. Bh6 {[%clk 0:02:28]}  Bg7 {[%clk 0:01:55]} 17. Bxa6 {[%clk 0:02:25]}  Ra8 {[%clk 0:01:51]} 18. Bf1 {[%clk 0:02:22]}  Qb6 {[%clk 0:01:48]} 19. Bxg7 {[%clk 0:02:22]}  Kxg7 {[%clk 0:01:47]} 20. h4 {[%clk 0:02:21]}  Ra5 {[%clk 0:01:46]} 21. d5 {[%clk 0:02:17]}  Ne5 {[%clk 0:01:43]} 22. Nxe5 {[%clk 0:02:12]}  dxe5 {[%clk 0:01:42]} 23. h5 {[%clk 0:02:12]}  exd5 {[%clk 0:01:36]} 24. h6+ {[%clk 0:02:12]}  Kg8 {[%clk 0:01:35]} 25. exd5 {[%clk 0:02:13]}  Qd6 {[%clk 0:01:35]} 26. Bc4 {[%clk 0:02:12]}  Bc6 {[%clk 0:01:08]} 27. Rad1 {[%clk 0:02:08]}  Rd8 {[%clk 0:01:01]} 28. dxc6 {[%clk 0:01:32]}  Qxd2 {[%clk 0:00:59]} 29. Rxd2 {[%clk 0:01:33]}  Rxd2 {[%clk 0:00:59]} 30. c7 {[%clk 0:01:33]}  Rc5 {[%clk 0:00:58]} 31. Rxe5 {[%clk 0:01:30]}  Kf8 {[%clk 0:00:56]} 32. Rxc5 {[%clk 0:01:30]} 1-0


[Site "https://www.chess.com"]

[Event "Titled Tuesday Blitz June 1 2021"]
[White "Tanenbaum, Zachary"]
[Black "Reprintsev, Alexander"]
[WhiteFideId "2060850"]
[BlackFideId "14100541"]
[WhiteElo "2165"]
[BlackElo "2177"]
[Result "0-1"]
[Round "02"]
[TimeControl "180+1"]
[Date "2021.06.01"]
[WhiteClock "0:00:04"]
[BlackClock "0:00:13"]

1. e4 {[%clk 0:03:00]}  d5 {[%clk 0:02:59]} 2. exd5 {[%clk 0:03:00]}  Qxd5 {[%clk 0:02:59]} 3. Nc3 {[%clk 0:03:00]}  Qa5 {[%clk 0:02:59]} 4. d4 {[%clk 0:03:01]}  Nf6 {[%clk 0:02:59]} 5. Nf3 {[%clk 0:03:00]}  Nc6 {[%clk 0:02:58]} 6. Bd2 {[%clk 0:02:57]}  a6 {[%clk 0:02:58]} 7. Ne4 {[%clk 0:02:15]}  Qb6 {[%clk 0:02:58]} 8. Nxf6+ {[%clk 0:02:14]}  gxf6 {[%clk 0:02:58]} 9. Bc4 {[%clk 0:02:08]}  Nxd4 {[%clk 0:02:46]} 10. O-O {[%clk 0:01:51]}  Rg8 {[%clk 0:02:39]} 11. Be3 {[%clk 0:01:43]}  Nxf3+ {[%clk 0:02:33]} 12. Qxf3 {[%clk 0:01:44]}  Bg4 {[%clk 0:01:53]} 13. Qg3 {[%clk 0:00:28]}  Qc6 {[%clk 0:01:44]} 14. Bd3 {[%clk 0:00:27]}  h5 {[%clk 0:01:32]} 15. h3 {[%clk 0:00:18]}  h4 {[%clk 0:01:32]} 16. Qxh4 {[%clk 0:00:17]}  Bf5 {[%clk 0:01:18]} 17. f3 {[%clk 0:00:15]}  Bxd3 {[%clk 0:01:18]} 18. cxd3 {[%clk 0:00:16]}  O-O-O {[%clk 0:01:16]} 19. Rac1 {[%clk 0:00:15]}  Qd5 {[%clk 0:01:14]} 20. Rc3 {[%clk 0:00:14]}  e6 {[%clk 0:01:02]} 21. Bf4 {[%clk 0:00:06]}  Bd6 {[%clk 0:01:01]} 22. Bxd6 {[%clk 0:00:06]}  Qxd6 {[%clk 0:00:48]} 23. Qxf6 {[%clk 0:00:06]}  Qg3 {[%clk 0:00:48]} 24. Rf2 {[%clk 0:00:06]}  Rd7 {[%clk 0:00:33]} 25. Rfc2 {[%clk 0:00:06]}  c6 {[%clk 0:00:32]} 26. Rf2 {[%clk 0:00:04]}  Qxh3 {[%clk 0:00:28]} 27. Qf4 {[%clk 0:00:03]}  Qh5 {[%clk 0:00:21]} 28. b4 {[%clk 0:00:02]}  e5 {[%clk 0:00:20]} 29. Qe4 {[%clk 0:00:02]}  Re8 {[%clk 0:00:18]} 30. Qe3 {[%clk 0:00:02]}  f5 {[%clk 0:00:18]} 31. Qb6 {[%clk 0:00:02]}  Rh8 {[%clk 0:00:16]} 32. Rfc2 {[%clk 0:00:02]}  Qh1+ {[%clk 0:00:15]} 33. Kf2 {[%clk 0:00:03]}  Qh4+ {[%clk 0:00:15]} 34. Kg1 {[%clk 0:00:04]}  Rh6 {[%clk 0:00:15]} 35. Kf1 {[%clk 0:00:04]}  Qh1+ {[%clk 0:00:15]} 36. Kf2 {[%clk 0:00:04]}  Qh4+ {[%clk 0:00:16]} 37. Ke2 {[%clk 0:00:04]}  Qg3 {[%clk 0:00:16]} 38. Rxc6+ {[%clk 0:00:04]}  bxc6 {[%clk 0:00:16]} 39. Rxc6+ {[%clk 0:00:05]}  Rxc6 {[%clk 0:00:15]} 40. Qxc6+ {[%clk 0:00:06]}  Kd8 {[%clk 0:00:15]} 41. Qf6+ {[%clk 0:00:06]}  Kc7 {[%clk 0:00:15]} 42. Ke3 {[%clk 0:00:04]}  Qf4+ {[%clk 0:00:15]} 43. Ke2 {[%clk 0:00:04]}  Qxb4 {[%clk 0:00:14]} 44. Qxe5+ {[%clk 0:00:04]}  Qd6 {[%clk 0:00:13]} 45. Qxf5 {[%clk 0:00:04]}  Re7+ {[%clk 0:00:13]} 46. Kf2 {[%clk 0:00:05]}  Qe5 {[%clk 0:00:13]} 47. Qg4 {[%clk 0:00:04]}  Qe1# {[%clk 0:00:13]} 0-1


[Site "https://www.chess.com"]

[Event "Titled Tuesday Blitz June 1 2021"]
[White "Terry, Renato"]
[Black "Levitskiy, Andrey"]
[WhiteFideId "3803457"]
[BlackFideId "14132885"]
[WhiteElo "2581"]
[BlackElo "2366"]
[Result "1-0"]
[Round "02"]
[TimeControl "180+1"]
[Date "2021.06.01"]
[WhiteClock "0:01:10"]
[BlackClock "0:00:08"]

1. e4 {[%clk 0:03:00]}  e6 {[%clk 0:02:59]} 2. d4 {[%clk 0:03:00]}  d5 {[%clk 0:03:00]} 3. exd5 {[%clk 0:03:01]}  exd5 {[%clk 0:03:01]} 4. Nf3 {[%clk 0:03:01]}  Nc6 {[%clk 0:03:01]} 5. Bb5 {[%clk 0:03:00]}  Bd6 {[%clk 0:02:59]} 6. c4 {[%clk 0:02:59]}  a6 {[%clk 0:02:02]} 7. Bxc6+ {[%clk 0:02:54]}  bxc6 {[%clk 0:02:01]} 8. c5 {[%clk 0:02:54]}  Be7 {[%clk 0:01:57]} 9. Ne5 {[%clk 0:02:53]}  Bd7 {[%clk 0:01:54]} 10. Qh5 {[%clk 0:02:49]}  g6 {[%clk 0:01:47]} 11. Qf3 {[%clk 0:02:49]}  Nf6 {[%clk 0:01:46]} 12. Bh6 {[%clk 0:02:48]}  Bf8 {[%clk 0:01:18]} 13. Bxf8 {[%clk 0:02:44]}  Rxf8 {[%clk 0:01:10]} 14. O-O {[%clk 0:02:35]}  Ne4 {[%clk 0:01:09]} 15. Nc3 {[%clk 0:02:27]}  f5 {[%clk 0:00:46]} 16. Qe2 {[%clk 0:02:13]}  Qe7 {[%clk 0:00:46]} 17. Rfe1 {[%clk 0:02:06]}  Rf6 {[%clk 0:00:45]} 18. Nxd7 {[%clk 0:01:56]}  Kxd7 {[%clk 0:00:44]} 19. f3 {[%clk 0:01:57]}  Raf8 {[%clk 0:00:40]} 20. fxe4 {[%clk 0:01:53]}  fxe4 {[%clk 0:00:38]} 21. Rf1 {[%clk 0:01:51]}  Qf7 {[%clk 0:00:34]} 22. Rxf6 {[%clk 0:01:46]}  Qxf6 {[%clk 0:00:35]} 23. Rd1 {[%clk 0:01:40]}  h5 {[%clk 0:00:33]} 24. Qe3 {[%clk 0:01:32]}  g5 {[%clk 0:00:32]} 25. b4 {[%clk 0:01:26]}  h4 {[%clk 0:00:32]} 26. h3 {[%clk 0:01:16]}  Qf5 {[%clk 0:00:28]} 27. Qe2 {[%clk 0:01:15]}  Qf6 {[%clk 0:00:27]} 28. a4 {[%clk 0:01:11]}  Ke7 {[%clk 0:00:17]} 29. b5 {[%clk 0:01:10]}  axb5 {[%clk 0:00:17]} 30. axb5 {[%clk 0:01:10]}  cxb5 {[%clk 0:00:08]} 31. Nxd5+ {[%clk 0:01:10]} 1-0


[Site "https://www.chess.com"]